[Event "IIFL Wealth 4th Mumbai GM"]
[Site "Mumbai"]
[Date "2019.01.03"]
[Round "5"]
[White "Ameir, Moheb"]
[Black "Divya Deshmukh"]
[Result "1/2-1/2"]
[ECO "B52"]
[WhiteElo "2327"]
[BlackElo "2190"]
[Annotator "NA"]
[PlyCount "90"]
[EventDate "2018.12.30"]
[EventType "swiss"]
[EventCountry "IND"]
[SourceTitle "playchess.com"]
[Source "ChessBase"]
[SourceQuality "1"]
[TimeControl "40/5400+30:1800+30"]

1. e4 {[%emt 0:00:00]} c5 {[%emt 0:00:00]} 2. Nf3 {[%emt 0:00:00]} d6 {[%emt 0:00:00]} 3. Bb5+ {[%emt 0:02:03]} Bd7 {[%emt 0:00:00]} 4. Bxd7+ {[%emt 0:00:08]} Qxd7 {[%emt 0:00:00]} 5. O-O {[%emt 0:00:41]} Nc6 {[%emt 0:00:08]} 6. c3 {[%emt 0:00:28]} Nf6 {[%emt 0:02:04]} 7. d4 {[%emt 0:00:17]} g6 {[%emt 0:01:54]} 8. Qe2 {[%emt 0:06:25]} Bg7 {[%emt 0:05:06]} 9. Rd1 {[%emt 0:00:31]} cxd4 {[%emt 0:04:58]} 10. cxd4 {[%emt 0:00:31]} O-O {[%emt 0:00:15]} 11. d5 {[%emt 0:00:08]} Nb4 {[%emt 0:04:45]} 12. Nc3 Rfc8 {[%emt 0:03:50]} 13. h3 {[%emt 0:26:57]} a5 {[%emt 0:01:43]} 14. Be3 {[%emt 0:07:01]} a4 {[%emt 0:07:32]} 15. a3 {[%emt 0:04:31]} Na6 {[%emt 0:04:55]} 16. e5 {[%emt 0:01:31]} dxe5 {[%emt 0:00:33]} 17. Nxe5 {[%emt 0:00:27]} Qe8 {[%emt 0:00:05]} 18. Rac1 {[%emt 0:14:20]} Nd7 {[%emt 0:04:18]} 19. Nxd7 {[%emt 0:03:23]} Qxd7 {[%emt 0:01:30]} 20. Bd4 {[%emt 0:00:38]} Bxd4 {[%emt 0:04:48]} 21. Rxd4 {[%emt 0:01:39]} Nc5 {[%emt 0:00:04]} 22. Re1 {[%emt 0:02:40]} e5 {[%emt 0:01:52]} 23. Ne4 {[%emt 0:15:00]} Nxe4 {[%emt 0:01:01]} 24. Rxe4 {[%emt 0:00:02]} f6 {[%emt 0:03:19]} 25. f4 {[%emt 0:01:19]} Qxd5 {[%emt 0:02:18]} 26. fxe5 {[%emt 0:00:09]} f5 {[%emt 0:00:19]} 27. Rb4 {[%emt 0:00:38]} Re8 {[%emt 0:01:46]} 28. Rb5 {[%emt 0:06:16]} Qc6 {[%emt 0:03:54]} 29. e6 {[%emt 0:00:11]} Re7 {[%emt 0:00:17]} 30. Re5 {[%emt 0:00:46]} Rae8 {[%emt 0:00:38]} 31. Kh1 {[%emt 0:00:19]} Kg7 {[%emt 0:03:37]} 32. Qe3 {[%emt 0:00:16]} Kg8 {[%emt 0:00:03]} 33. Qe2 {[%emt 0:01:32]} Kg7 {[%emt 0:00:04]} 34. Qe3 {[%emt 0:00:39]} Kg8 {[%emt 0:00:07]} 35. Re2 {[%emt 0:00:11]} Kg7 {[%emt 0:04:39]} 36. Qd4 {[%emt 0:01:09]} Kg8 {[%emt 0:01:14]} 37. Qe3 {[%emt 0:00:35]} Kg7 {[%emt 0:00:05]} 38. Kg1 {[%emt 0:01:07]} Kg8 {[%emt 0:00:34]} 39. Re1 {[%emt 0:00:54]} Kg7 {[%emt 0:01:08]} 40. h4 {[%emt 0:00:00]} h5 {[%emt 0:00:00]} 41. b3 {[%emt 0:12:04]} axb3 {[%emt 0:18:20]} 42. Qxb3 {[%emt 0:00:18]} Kh7 {[%emt 0:00:12]} 43. Kh1 {[%emt 0:03:29]} Qd6 {[%emt 0:02:16]} 44. Qe3 {[%emt 0:00:56]} Kg7 {[%emt 0:03:57]} 45. Qc3 {[%emt 0:00:46]} Kh7 {[%emt 0:01:07]} 1/2-1/2

[Event "IIFL Wealth 4th Mumbai GM"]
[Site "Mumbai"]
[Date "2019.01.03"]
[Round "5"]
[White "Elgabry, Mohsen"]
[Black "Subhayan Kundu"]
[Result "0-1"]
[ECO "A10"]
[WhiteElo "2305"]
[BlackElo "2185"]
[Annotator "NA"]
[PlyCount "141"]
[EventDate "2018.12.30"]
[EventType "swiss"]
[EventCountry "IND"]
[SourceTitle "playchess.com"]
[Source "ChessBase"]
[SourceQuality "1"]
[TimeControl "40/5400+30:1800+30"]

1. c4 {[%emt 0:00:00]} f5 {[%emt 0:00:00]} 2. Nc3 {[%emt 0:00:21]} Nf6 {[%emt 0:00:00]} 3. Nf3 {[%emt 0:00:21]} g6 {[%emt 0:00:00]} 4. g3 {[%emt 0:00:25]} Bg7 {[%emt 0:00:00]} 5. Bg2 {[%emt 0:00:01]} O-O {[%emt 0:00:15]} 6. O-O {[%emt 0:00:14]} d6 {[%emt 0:00:03]} 7. d4 {[%emt 0:00:15]} Qe8 {[%emt 0:00:06]} 8. Nd5 {[%emt 0:01:34]} Nxd5 {[%emt 0:08:01] A87: Dutch Defence: Leningrad System: 5 Nf3} 9. cxd5 {[%emt 0:00:01]} h6 {[%emt 0:00:10]} (9... Nd7 10. Ng5 Nf6 11. Qb3 h6 12. Ne6 Bxe6 13. dxe6 Rb8 14. Bd2 c6 15. Rac1 g5 16. e3 {1-0 (38) Burg,T (2517)-Pruijssers,R (2506) Netherlands 2018}) 10. Qc2 {[%emt 0:00:37]} Na6 {[%emt 0:00:32]} 11. a3 $146 {[%emt 0:00:18]} ({Predecessor:} 11. e3 Bd7 12. Bd2 Qf7 13. Rfd1 c6 14. dxc6 Bxc6 15. Bc3 Be4 16. Qe2 {1-0 (48) Teh,E (2289)-Cleary,M Telford 2018}) 11... Qb5 {[%emt 0:13:49]} 12. Nh4 {[%emt 0:04:14]} g5 {[%emt 0:09:30]} 13. Ng6 {[%emt 0:00:31]} Rf7 {[%emt 0:00:14]} 14. h4 {[%emt 0:00:19]} Kh7 {[%emt 0:00:52]} 15. h5 {[%emt 0:13:09]} Bxd4 {[%emt 0:01:20]} 16. g4 {[%emt 0:00:18]} Nc5 {[%emt 0:04:50]} 17. b4 {[%emt 0:05:18]} Bxa1 {[%emt 0:15:05]} 18. bxc5 {[%emt 0:00:56]} Qxc5 {[%emt 0:00:53]} 19. Qb1 {[%emt 0:00:18]} Bg7 {[%emt 0:00:34]} 20. Bf3 {[%emt 0:02:12]} Kg8 {[%emt 0:09:16]} 21. Be3 {[%emt 0:00:30]} Qxa3 {[%emt 0:09:50]} 22. Qb5 {[%emt 0:02:39]} Rf8 {[%emt 0:05:52]} 23. Nxe7+ {[%emt 0:05:14]} Kh7 {[%emt 0:00:03]} 24. Ng6 {[%emt 0:00:20]} Rd8 {[%emt 0:02:59]} 25. Ne7 {[%emt 0:03:36]} Qb2 {[%emt 0:02:51]} 26. Qd3 {[%emt 0:02:20]} Qe5 {[%emt 0:00:33]} 27. Ng6 {[%emt 0:01:42]} Qc3 {[%emt 0:01:57]} 28. Qb1 {[%emt 0:00:09]} Qb2 {[%emt 0:00:44]} 29. Qd3 {[%emt 0:00:28]} Qc3 {[%emt 0:01:27]} 30. Qb1 {[%emt 0:00:02]} Qf6 {[%emt 0:01:49]} 31. Rc1 {[%emt 0:00:42]} Rd7 {[%emt 0:00:13]} 32. Rc4 {[%emt 0:04:45]} Rf7 {[%emt 0:01:12]} 33. Bd4 {[%emt 0:04:50]} Qxd4 {[%emt 0:01:37]} 34. Rxd4 {[%emt 0:00:01]} Bxd4 {[%emt 0:00:06]} 35. Qb5 {[%emt 0:01:13]} Bd7 {[%emt 0:00:17]} 36. Qxb7 {[%emt 0:00:01]} Re8 {[%emt 0:00:17]} 37. Qb1 {[%emt 0:08:11]} Kg7 {[%emt 0:01:13]} 38. Qd3 {[%emt 0:00:27]} Bf6 {[%emt 0:01:15]} 39. gxf5 {[%emt 0:00:30]} a5 {[%emt 0:00:08]} 40. e4 {[%emt 0:00:00]} a4 {[%emt 0:00:00]} 41. Bd1 {[%emt 0:03:22]} Ra8 {[%emt 0:04:15]} 42. Qc4 {[%emt 0:01:21]} a3 {[%emt 0:01:45]} 43. Bb3 {[%emt 0:00:01]} Bb2 {[%emt 0:04:32]} 44. Kg2 {[%emt 0:01:18]} Rb8 {[%emt 0:00:09]} 45. Ba2 {[%emt 0:00:37]} Bb5 {[%emt 0:02:47]} 46. Qc2 {[%emt 0:00:01]} Be8 {[%emt 0:01:57]} 47. e5 {[%emt 0:12:45]} dxe5 {[%emt 0:11:34]} 48. d6 {[%emt 0:00:42]} cxd6 {[%emt 0:00:35]} 49. f6+ {[%emt 0:09:48]} Kxf6 {[%emt 0:00:17]} 50. Nh8 {[%emt 0:06:47]} Re7 {[%emt 0:03:41]} 51. Ng6 {[%emt 0:01:20]} Rf7 {[%emt 0:02:16]} 52. Qd3 {[%emt 0:01:45]} Rb6 {[%emt 0:03:35]} 53. Qe3 {[%emt 0:04:55]} Rb8 {[%emt 0:04:25]} 54. Qd3 {[%emt 0:03:08]} Rd8 {[%emt 0:00:39]} 55. Nh8 {[%emt 0:10:17]} Re7 {[%emt 0:00:10]} 56. Ng6 {[%emt 0:00:02]} Rf7 {[%emt 0:00:43]} 57. Nh8 {[%emt 0:00:09]} Rc7 {[%emt 0:00:38]} 58. Ng6 {[%emt 0:00:33]} Bf7 {[%emt 0:00:49]} 59. Nf8 {[%emt 0:02:34]} e4 {[%emt 0:02:40]} 60. Nh7+ {[%emt 0:03:22]} Kf5 {[%emt 0:00:04]} 61. Qh3+ {[%emt 0:00:30]} g4 {[%emt 0:00:01]} 62. Qh4 {[%emt 0:00:01]} Bxa2 {[%emt 0:00:12]} 63. Qxd8 {[%emt 0:00:04]} Rxh7 {[%emt 0:00:07]} 64. Qxd6 {[%emt 0:01:43]} Be6 {[%emt 0:00:50]} 65. Qc5+ {[%emt 0:00:22]} Kf6 {[%emt 0:00:50]} 66. Qf8+ {[%emt 0:01:31]} Bf7 {[%emt 0:00:06]} 67. Qb4 $19 {[%emt 0:01:57]} Kg7 {[%emt 0:00:39]} 68. Qb7 {[%emt 0:00:48]} Bf6 {[%emt 0:00:42]} 69. Qxe4 {[%emt 0:00:10]} a2 {[%emt 0:00:17]} 70. Qxg4+ {[%emt 0:00:03]} Kh8 {[%emt 0:00:04]} 71. Qd1 0-1

[Event "IIFL Wealth 4th Mumbai GM"]
[Site "Mumbai"]
[Date "2019.01.03"]
[Round "5"]
[White "Sangma, Rahul"]
[Black "Deshpande, Aniruddha"]
[Result "1-0"]
[ECO "B31"]
[WhiteElo "2289"]
[BlackElo "2167"]
[Annotator "NA"]
[PlyCount "119"]
[EventDate "2018.12.30"]
[EventType "swiss"]
[EventCountry "IND"]
[SourceTitle "playchess.com"]
[Source "ChessBase"]
[SourceQuality "1"]
[TimeControl "40/5400+30:1800+30"]

1. e4 {[%emt 0:04:27]} c5 {[%emt 0:00:00]} 2. Nf3 {[%emt 0:00:02]} Nc6 {[%emt 0:00:05]} 3. Bb5 {[%emt 0:01:10]} g6 {[%emt 0:00:09]} 4. O-O {[%emt 0:01:09]} Bg7 {[%emt 0:00:02]} 5. Bxc6 {[%emt 0:00:37]} dxc6 {[%emt 0:00:08]} 6. d3 {[%emt 0:00:15]} Nf6 {[%emt 0:00:19]} 7. Nbd2 {[%emt 0:03:36]} O-O {[%emt 0:09:01] B31: Sicilian: 2...Nc6 3 Bb5 g6} 8. a4 {[%emt 0:01:12]} Re8 $146 {[%emt 0:17:19]} ({Predecessor:} 8... h6 9. Nc4 Be6 10. Qe2 Qc7 11. g3 Qc8 12. Nh4 g5 13. Ng2 Bxc4 14. dxc4 Qe6 15. Re1 Rad8 16. c3 Nd7 {½-½ (16) Kett,T (2222)-Wells,P (2488) Treforest 2010}) 9. a5 {[%emt 0:02:36]} e5 {[%emt 0:01:14]} 10. Nc4 {[%emt 0:04:31]} Nh5 {[%emt 0:01:45]} 11. Be3 {[%emt 0:06:16]} Qe7 {[%emt 0:02:10]} 12. Re1 {[%emt 0:11:50]} f6 {[%emt 0:06:47]} 13. Qc1 {[%emt 0:07:24]} g5 {[%emt 0:05:23]} 14. g3 {[%emt 0:01:15]} Bf8 {[%emt 0:13:16]} 15. Nfd2 {[%emt 0:00:21]} Qe6 {[%emt 0:05:49]} 16. Nb3 {[%emt 0:05:34]} Qh3 {[%emt 0:05:51]} 17. Qd1 {[%emt 0:04:04]} Nf4 {[%emt 0:04:37]} 18. Bxf4 {[%emt 0:02:50]} gxf4 {[%emt 0:00:13]} 19. Qf3 {[%emt 0:05:45]} Kh8 {[%emt 0:14:24]} 20. Nbd2 {[%emt 0:02:02]} Bh6 {[%emt 0:01:56]} 21. Nd6 {[%emt 0:07:16]} Bg4 {[%emt 0:03:27]} 22. Qg2 {[%emt 0:00:25]} Re7 {[%emt 0:00:28]} 23. Qxh3 {[%emt 0:10:58]} Bxh3 {[%emt 0:00:03]} 24. Nb3 {[%emt 0:00:09]} Rd7 {[%emt 0:01:16]} 25. Nc4 {[%emt 0:00:03]} Bf8 {[%emt 0:00:09]} 26. f3 {[%emt 0:00:12]} Be6 {[%emt 0:01:26]} 27. Kf2 {[%emt 0:06:12]} Rad8 {[%emt 0:00:38]} 28. gxf4 {[%emt 0:01:52]} exf4 {[%emt 0:00:56]} 29. Ke2 {[%emt 0:00:43]} Rg7 {[%emt 0:01:37]} 30. Rg1 {[%emt 0:00:06]} Rg5 {[%emt 0:00:45]} 31. Rxg5 {[%emt 0:06:04]} fxg5 {[%emt 0:00:02]} 32. Rg1 {[%emt 0:00:07]} h6 {[%emt 0:00:57]} 33. a6 {[%emt 0:03:52]} Bxc4 {[%emt 0:02:19]} 34. dxc4 {[%emt 0:00:02]} b6 {[%emt 0:00:02]} 35. Nc1 {[%emt 0:00:57]} Bg7 {[%emt 0:00:44]} 36. Nd3 {[%emt 0:00:04]} Rd4 {[%emt 0:00:37]} 37. b3 {[%emt 0:00:17]} Rd7 {[%emt 0:01:12]} 38. h4 {[%emt 0:00:05]} Bf6 {[%emt 0:00:29]} 39. Rh1 {[%emt 0:02:39]} Kg7 {[%emt 0:00:20]} 40. hxg5 {[%emt 0:00:00]} hxg5 {[%emt 0:00:00]} 41. Rd1 {[%emt 0:06:28]} Bc3 {[%emt 0:04:13]} 42. Nf2 {[%emt 0:04:32]} Rxd1 {[%emt 0:00:56]} 43. Kxd1 {[%emt 0:00:04]} Kf7 {[%emt 0:12:56]} 44. Ke2 {[%emt 0:01:02]} Bd4 {[%emt 0:00:41]} 45. Nd3 {[%emt 0:00:05]} Kf6 {[%emt 0:06:18]} 46. Kf1 {[%emt 0:03:00]} g4 {[%emt 0:01:07]} 47. fxg4 {[%emt 0:03:03]} Kg5 {[%emt 0:03:18]} 48. e5 {[%emt 0:00:07]} f3 {[%emt 0:00:50]} 49. e6 {[%emt 0:06:32]} Kf6 {[%emt 0:00:36]} 50. Ne1 {[%emt 0:02:25]} Kxe6 {[%emt 0:03:57]} 51. Nxf3 {[%emt 0:00:01]} Bb2 {[%emt 0:00:13]} 52. Ke2 {[%emt 0:00:20]} Bc1 {[%emt 0:00:35]} 53. Kd3 {[%emt 0:00:02]} Bb2 {[%emt 0:00:27]} 54. Ke4 {[%emt 0:00:04]} Bc3 {[%emt 0:00:13]} 55. Kf4 {[%emt 0:00:44]} Kf6 {[%emt 0:00:19]} 56. Ke4 {[%emt 0:01:38]} Ke6 {[%emt 0:00:09]} 57. g5 {[%emt 0:01:30]} Bb2 $18 {[%emt 0:00:23]} 58. Nh4 {[%emt 0:00:08]} Bc1 {[%emt 0:02:20]} 59. g6 {[%emt 0:00:11]} Kf6 {[%emt 0:00:41]} 60. Nf5 {[%emt 0:00:29]} 1-0

[Event "IIFL Wealth 4th Mumbai GM"]
[Site "Mumbai"]
[Date "2019.01.03"]
[Round "5"]
[White "Sarwat, Walaa"]
[Black "Chowdhury, Sohel"]
[Result "1-0"]
[ECO "B87"]
[WhiteElo "2276"]
[BlackElo "2012"]
[Annotator "NA"]
[PlyCount "37"]
[EventDate "2018.12.30"]
[EventType "swiss"]
[EventCountry "IND"]
[SourceTitle "playchess.com"]
[Source "ChessBase"]
[SourceQuality "1"]
[TimeControl "40/5400+30:1800+30"]

1. e4 {[%emt 0:00:00]} c5 {[%emt 0:00:23]} 2. Nf3 {[%emt 0:00:00]} d6 {[%emt 0:00:03]} 3. Nc3 {[%emt 0:00:02]} Nf6 {[%emt 0:00:04]} 4. d4 {[%emt 0:00:23]} cxd4 {[%emt 0:00:02]} 5. Nxd4 {[%emt 0:00:07]} a6 {[%emt 0:00:02]} 6. Bc4 {[%emt 0:00:48]} e6 {[%emt 0:00:02]} 7. Bb3 {[%emt 0:00:10]} b5 {[%emt 0:01:03]} 8. O-O {[%emt 0:00:10]} Nbd7 {[%emt 0:00:49]} 9. Re1 {[%emt 0:00:11]} Nc5 {[%emt 0:01:38]} 10. Bd5 {[%emt 0:05:23]} exd5 {[%emt 0:10:50]} 11. exd5+ {[%emt 0:00:16]} Kd7 {[%emt 0:00:05]} 12. b4 {[%emt 0:03:37]} Na4 {[%emt 0:01:53]} 13. Nxa4 {[%emt 0:01:19]} bxa4 {[%emt 0:00:43]} 14. Nc6 {[%emt 0:12:32]} Qb6 {[%emt 0:01:11]} 15. Qf3 {[%emt 0:34:14]} Qb5 {[%emt 0:06:30]} 16. c4 {[%emt 0:08:49]} Qxc4 {[%emt 0:00:06]} 17. Bf4 {[%emt 0:00:38]} Qxd5 {[%emt 0:15:28]} 18. Ne5+ Kd8 19. Qe3 {[%emt 0:10:58]} 1-0

[Event "IIFL Wealth 4th Mumbai GM"]
[Site "Mumbai"]
[Date "2019.01.03"]
[Round "5"]
[White "Ziatdinov, Raset"]
[Black "Surendran N"]
[Result "1-0"]
[ECO "B21"]
[WhiteElo "2252"]
[BlackElo "2176"]
[Annotator "NA"]
[PlyCount "131"]
[EventDate "2018.12.30"]
[EventType "swiss"]
[EventCountry "IND"]
[SourceTitle "playchess.com"]
[Source "ChessBase"]
[SourceQuality "1"]
[TimeControl "40/5400+30:1800+30"]

1. e4 {[%emt 0:02:20]} c5 {[%emt 0:00:17]} 2. f4 {[%emt 0:00:23]} Nc6 {[%emt 0:00:26]} 3. Nf3 {[%emt 0:00:02]} g6 {[%emt 0:00:24]} 4. Be2 {[%emt 0:00:16]} Bg7 {[%emt 0:00:07]} 5. O-O {[%emt 0:00:02]} e6 {[%emt 0:02:32]} 6. Nc3 {[%emt 0:00:10]} d6 {[%emt 0:00:21]} 7. d3 {[%emt 0:00:11]} Nge7 {[%emt 0:00:08]} 8. Qe1 {[%emt 0:00:11]} Nd4 {[%emt 0:00:54]} 9. Bd1 {[%emt 0:00:36]} O-O {[%emt 0:01:33]} 10. Nxd4 {[%emt 0:00:42]} cxd4 {[%emt 0:01:01]} 11. Ne2 {[%emt 0:00:03]} f5 {[%emt 0:07:18]} 12. Kh1 {[%emt 0:00:08]} Qc7 {[%emt 0:09:00]} 13. Bd2 {[%emt 0:04:38]} Bd7 {[%emt 0:01:25]} 14. Ng3 {[%emt 0:02:07]} Qb6 {[%emt 0:08:41]} 15. Rb1 {[%emt 0:02:49]} Rac8 {[%emt 0:00:54]} 16. Bb4 {[%emt 0:02:06]} Rfe8 {[%emt 0:06:00]} 17. Rf2 {[%emt 0:01:54]} Qc7 {[%emt 0:03:39]} 18. Bf3 {[%emt 0:01:03]} Nc6 {[%emt 0:00:57]} 19. Bd2 {[%emt 0:09:13]} Nd8 {[%emt 0:07:54]} 20. Rc1 {[%emt 0:05:15]} Nf7 {[%emt 0:00:31]} 21. Re2 {[%emt 0:02:25]} Qb6 {[%emt 0:02:59]} 22. c4 {[%emt 0:03:36]} dxc3 {[%emt 0:13:29]} 23. bxc3 {[%emt 0:00:21]} Qa6 {[%emt 0:02:32]} 24. d4 {[%emt 0:02:08]} Bb5 {[%emt 0:01:38]} 25. Rf2 {[%emt 0:06:00]} Qxa2 {[%emt 0:06:26]} 26. Ra1 {[%emt 0:04:02]} Qc4 {[%emt 0:00:48]} 27. Qb1 {[%emt 0:01:53]} a6 {[%emt 0:00:50]} 28. exf5 {[%emt 0:08:53]} exf5 {[%emt 0:00:21]} 29. Bxb7 {[%emt 0:00:06]} Rb8 {[%emt 0:00:49]} 30. Bf3 {[%emt 0:02:33]} Bc6 {[%emt 0:09:37]} 31. Qf1 {[%emt 0:02:03]} Qxf1+ {[%emt 0:00:07]} 32. Nxf1 {[%emt 0:00:08]} Bxf3 {[%emt 0:00:15]} 33. gxf3 {[%emt 0:02:14]} Bf6 {[%emt 0:09:03]} 34. Ne3 {[%emt 0:00:37]} Bh4 {[%emt 0:00:10]} 35. Rg2 {[%emt 0:00:19]} Kf8 {[%emt 0:00:07]} 36. Nd5 {[%emt 0:01:40]} Rb2 {[%emt 0:02:15]} 37. Kg1 {[%emt 0:09:24]} a5 {[%emt 0:01:11]} 38. Kf1 {[%emt 0:00:30]} a4 {[%emt 0:00:21]} 39. Re2 {[%emt 0:00:41]} a3 {[%emt 0:01:57]} 40. Rxe8+ {[%emt 0:00:00]} Kxe8 {[%emt 0:00:00]} 41. Ke2 {[%emt 0:01:15]} a2 {[%emt 0:02:31]} 42. Kd3 {[%emt 0:00:29]} g5 {[%emt 0:06:23]} 43. Nb4 {[%emt 0:08:58]} g4 {[%emt 0:19:33]} 44. fxg4 {[%emt 0:01:42]} fxg4 {[%emt 0:00:02]} 45. Rxa2 {[%emt 0:05:18]} Rxa2 {[%emt 0:00:45]} 46. Nxa2 {[%emt 0:00:05]} Kd7 {[%emt 0:00:29]} 47. Ke4 {[%emt 0:00:47]} Ke6 {[%emt 0:02:04]} 48. c4 {[%emt 0:00:42]} Bf2 {[%emt 0:01:46]} 49. f5+ {[%emt 0:09:31]} Kf6 {[%emt 0:00:05]} 50. Nc3 {[%emt 0:00:25]} h5 {[%emt 0:01:39]} 51. Nd5+ {[%emt 0:00:24]} Kg7 {[%emt 0:00:02]} 52. Be3 {[%emt 0:01:09]} Bxe3 {[%emt 0:00:10]} 53. Kxe3 {[%emt 0:02:50]} h4 {[%emt 0:00:26]} 54. c5 {[%emt 0:01:25]} dxc5 {[%emt 0:00:24]} 55. dxc5 {[%emt 0:00:07]} Nh6 {[%emt 0:00:09]} 56. f6+ {[%emt 0:01:22]} Kf7 {[%emt 0:00:18]} 57. c6 {[%emt 0:01:47]} Nf5+ {[%emt 0:02:08]} 58. Kf4 {[%emt 0:04:31]} g3 {[%emt 0:00:21]} 59. hxg3 {[%emt 0:02:02]} hxg3 {[%emt 0:00:43]} 60. c7 {[%emt 0:00:28]} g2 {[%emt 0:00:33]} 61. c8=Q {[%emt 0:00:25]} g1=Q {[%emt 0:00:09]} 62. Qd7+ {[%emt 0:00:19]} Kf8 {[%emt 0:00:15]} 63. Qxf5 {[%emt 0:00:13]} Qf2+ {[%emt 0:00:25]} 64. Ke5 {[%emt 0:00:22]} Qb2+ {[%emt 0:00:08]} 65. Ke6 {[%emt 0:00:14]} Qb8 {[%emt 0:00:33]} 66. Qh7 {[%emt 0:00:39]} 1-0

[Event "IIFL Wealth 4th Mumbai GM"]
[Site "Mumbai"]
[Date "2019.01.03"]
[Round "5"]
[White "Navalgund, Niranjan"]
[Black "Lugovskoy, Maxim"]
[Result "0-1"]
[ECO "E04"]
[WhiteElo "2240"]
[BlackElo "2445"]
[Annotator "NA RC"]
[PlyCount "88"]
[EventDate "2018.12.30"]
[EventType "swiss"]
[EventCountry "IND"]
[SourceTitle "playchess.com"]
[Source "ChessBase"]
[SourceQuality "1"]
[TimeControl "40/5400+30:1800+30"]

1. Nf3 {[%emt 0:00:00]} d5 {[%emt 0:00:00]} 2. d4 {[%emt 0:00:00]} Nf6 {[%emt 0:00:22]} 3. c4 {[%emt 0:00:00]} e6 {[%emt 0:00:04]} 4. g3 {[%emt 0:00:00]} dxc4 {[%emt 0:00:32]} 5. Bg2 {[%emt 0:00:00]} Nc6 {[%emt 0:00:23]} 6. O-O {[%emt 0:00:03]} Rb8 {[%emt 0:00:15]} 7. e3 {[%emt 0:04:55]} Bd7 {[%emt 0:01:12]} 8. Qe2 {[%emt 0:05:56]} Bd6 {[%emt 0:00:27]} 9. Qxc4 {[%emt 0:07:23]} O-O {[%emt 0:00:06]} 10. Nbd2 {[%emt 0:01:06]} e5 {[%emt 0:00:20]} 11. dxe5 {[%emt 0:01:25]} Nxe5 {[%emt 0:00:13]} 12. Nxe5 {[%emt 0:00:08]} Bxe5 {[%emt 0:00:03]} 13. Qc2 {[%emt 0:00:19]} Qe8 {[%emt 0:21:35]} 14. f4 {[%emt 0:20:30]} Bd6 {[%emt 0:01:01]} 15. e4 {[%emt 0:05:09]} Ng4 {[%emt 0:01:16]} 16. Nb3 {[%emt 0:16:40]} c5 {[%emt 0:20:47]} 17. h3 {[%emt 0:01:38]} c4 {[%emt 0:02:04]} 18. hxg4 {[%emt 0:05:10]} cxb3 {[%emt 0:00:20]} 19. Qxb3 {[%emt 0:02:19]} Bxg4 {[%emt 0:03:55]} 20. Be3 {[%emt 0:07:17]} Qe7 {[%emt 0:04:32]} 21. Rac1 {[%emt 0:06:36]} b6 {[%emt 0:03:10]} 22. e5 {[%emt 0:00:46]} Bb4 {[%emt 0:01:16]} 23. a3 {[%emt 0:01:49]} Bc5 {[%emt 0:00:04]} 24. Qc3 {[%emt 0:05:06]} Qe6 {[%emt 0:04:37]} 25. b4 {[%emt 0:00:39]} Bxe3+ {[%emt 0:00:25]} 26. Qxe3 {[%emt 0:00:02]} Rbc8 {[%emt 0:00:21]} 27. Bb7 {[%emt 0:01:36]} Rxc1 {[%emt 0:00:22]} 28. Rxc1 {[%emt 0:00:01]} Rd8 {[%emt 0:00:09]} 29. Bg2 {[%emt 0:02:18]} h5 {[%emt 0:00:19]} 30. Rf1 {[%emt 0:02:06]} Qc4 {[%emt 0:03:35]} 31. Be4 {[%emt 0:01:40]} Qe6 {[%emt 0:06:50]} 32. Bg2 {[%emt 0:01:37]} Bf5 {[%emt 0:00:27]} 33. Kh2 {[%emt 0:01:39]} Rd3 {[%emt 0:00:19]} 34. Qc1 {[%emt 0:00:01]} Qb3 {[%emt 0:00:58]} 35. Qe1 {[%emt 0:01:01]} Qxa3 {[%emt 0:00:02]} 36. b5 {[%emt 0:00:27]} Qb3 {[%emt 0:00:17]} 37. Rg1 {[%emt 0:00:29]} Qb2 {[%emt 0:02:50]} 38. Kh1 {[%emt 0:00:36]} Qxb5 {[%emt 0:00:14]} 39. Qe2 {[%emt 0:00:27]} Qd7 {[%emt 0:02:02]} 40. Qxh5 {[%emt 0:00:00]} Rxg3 {[%emt 0:00:00]} 41. Rd1 {[%emt 0:00:43]} Rd3 {[%emt 0:00:58]} 42. Rg1 {[%emt 0:00:37]} Be4 {[%emt 0:01:48]} 43. Kh2 {[%emt 0:00:57]} Rd2 {[%emt 0:00:50]} 44. Kg3 {[%emt 0:00:55]} Qd4 {[%emt 0:02:00]} 0-1

[Event "IIFL Wealth 4th Mumbai GM"]
[Site "Mumbai"]
[Date "2019.01.03"]
[Round "5"]
[White "Mohite, Ranveer"]
[Black "Gandhi, Anish"]
[Result "1-0"]
[ECO "A01"]
[WhiteElo "2236"]
[BlackElo "2134"]
[Annotator "NA"]
[PlyCount "41"]
[EventDate "2018.12.30"]
[EventType "swiss"]
[EventCountry "IND"]
[SourceTitle "playchess.com"]
[Source "ChessBase"]
[SourceQuality "1"]
[TimeControl "40/5400+30:1800+30"]

1. b3 {[%emt 0:00:00]} Nf6 {[%emt 0:00:00]} 2. Bb2 {[%emt 0:00:00]} g6 {[%emt 0:00:00]} 3. g3 {[%emt 0:00:07]} Bg7 {[%emt 0:00:19]} 4. Bg2 {[%emt 0:00:02]} O-O {[%emt 0:00:44]} 5. Nf3 {[%emt 0:00:11]} d6 {[%emt 0:00:48]} 6. d4 {[%emt 0:00:21]} c5 {[%emt 0:01:07]} 7. O-O {[%emt 0:01:33]} Nbd7 {[%emt 0:03:29]} 8. c4 {[%emt 0:02:31]} Rb8 {[%emt 0:04:50]} 9. Nc3 {[%emt 0:02:15]} a6 {[%emt 0:00:48]} 10. a4 {[%emt 0:09:38]} cxd4 {[%emt 0:01:45]} 11. Nxd4 {[%emt 0:00:14]} Nc5 {[%emt 0:00:15]} 12. b4 {[%emt 0:04:28]} Ne6 {[%emt 0:01:01]} 13. Nd5 {[%emt 0:02:48]} Nxd5 {[%emt 0:07:21]} 14. cxd5 {[%emt 0:08:16]} Nxd4 {[%emt 0:03:03]} 15. Bxd4 {[%emt 0:00:02]} Bxd4 {[%emt 0:02:27]} 16. Qxd4 {[%emt 0:00:01]} Bd7 {[%emt 0:00:14]} 17. Rfc1 {[%emt 0:03:16]} Rc8 {[%emt 0:14:48]} 18. a5 {[%emt 0:04:11]} Bb5 {[%emt 0:04:07]} 19. Bh3 {[%emt 0:00:07]} Rxc1+ {[%emt 0:06:34]} 20. Rxc1 {[%emt 0:00:30]} Bd7 {[%emt 0:03:28]} 21. Qb6 {[%emt 0:11:32]} 1-0